bitfinex/quotes_ETHUSD_20251224
["timestamp","ask_amount","ask_price","bid_price","bid_amount"]
[1766584795888,0.002,2932.3,2931.7,0.9961]
[1766584796095,0.002,2932.3,2931.7,4.40708656]
[1766584796390,0.002,2932.3,2931.7,0.9961]
[1766584797795,0.002,2932.3,2931.7,3.41097529]
[1766584798001,0.002,2932.3,2931.9,0.9961]
[1766584800212,0.04462574,2932.5,2931.9,0.9961]
[1766584800213,0.002,2932.5,2931.9,7.60324442]
[1766584800367,0.002,2932.5,2932.0,0.9961]
[1766584802998,0.002,2932.5,2932.0,4.4067093]
[1766584805300,0.002,2932.5,2932.1,0.9824]
[1766584812120,0.002,2932.5,2932.2,0.9824]
[1766584812271,0.002,2932.9,2932.3,0.9824]
[1766584819129,0.002,2932.9,2932.3,3.4102802]
[1766584819417,0.002,2932.9,2932.4,0.9824]
[1766584821513,0.002,2932.9,2932.5,0.9824]
[1766584821813,0.002,2932.9,2932.4,3.41016829]
[1766584821814,0.002,2932.9,2932.7,0.9824]
[1766584822215,0.002,2933.0,2932.6,0.43925683]
[1766584822818,0.002,2933.0,2932.7,0.9824]
[1766584824206,0.002,2933.3,2932.8,0.9824]
[1766584825529,0.002,2933.4,2932.7,7.71359603]
[1766584825712,0.002,2933.5,2932.9,0.9824]
[1766584826108,0.002,2933.5,2933.0,0.9824]
[1766584827624,0.002,2933.5,2932.8,5.65560629]
[1766584827918,0.002,2933.5,2932.8,1.26355547]
[1766584828117,0.002,2933.5,2932.6,4.39227104]
[1766584828313,0.002,2933.5,2932.7,0.9824]
[1766584830208,0.002,2933.5,2932.7,4.39220713]
[1766584830721,0.002,2933.5,2932.8,0.9824]
[1766584831294,0.002,2933.5,2932.6,3.40988496]
[1766584831625,0.002,2933.5,2932.7,0.86385357]
[1766584834725,0.002,2933.5,2932.7,4.27365131]
[1766584834899,0.002,2933.5,2932.7,5.19825131]
[1766584836327,0.002,2933.5,2932.9,0.9408]
[1766584837524,0.002,2933.5,2932.9,0.893]
[1766584837730,0.002,2933.5,2933.1,0.9408]
[1766584838141,0.002,2933.5,2933.2,4.35004587]
[1766584840402,0.002,2933.5,2933.3,0.9408]
[1766584842749,0.002,2933.5,2933.3,4.34988443]
[1766584842914,0.002,2933.7,2933.4,0.9408]
[1766584843114,0.002,2933.7,2933.5,0.77590141]
[1766584843637,0.002,2933.7,2933.6,0.9408]
[1766584843936,0.002,2933.9,2933.6,0.9408]
[1766584845671,0.002,2933.9,2933.5,0.77590141]
[1766584845936,0.002,2933.9,2933.0,0.53719002]
[1766584845937,0.002,2933.9,2933.2,3.4091411]
[1766584846228,0.002,2933.9,2933.1,4.30235251]
[1766584846229,0.002,2933.9,2933.1,5.24309404]
[1766584847136,0.002,2933.9,2933.1,1.8338]
[1766584847932,0.002,2933.9,2933.1,5.24315963]
[1766584848233,0.002,2933.9,2932.9,3.40952276]
[1766584848435,0.002,2933.9,2933.0,3.409472]
[1766584848640,0.002,2933.9,2932.9,4.27484395]
[1766584848798,0.002,2933.9,2932.9,1.80610561]
[1766584849001,0.002,2933.9,2932.9,5.2156309]
[1766584850041,0.002,2933.9,2932.9,4.2748309]
[1766584850343,0.002,2933.9,2933.1,0.9408]
[1766584851946,0.002,2933.9,2933.1,4.35015514]
[1766584852151,0.002,2933.9,2933.2,0.9408]
[1766584858445,0.002,2933.9,2933.0,1.70924881]
[1766584858646,0.002,2933.9,2933.0,5.1187144]
[1766584858842,0.002,2933.9,2933.1,0.94212926]
[1766584859753,0.09877552,2933.4,2932.7,0.9408]
[1766584859958,0.09877552,2933.4,2932.6,3.41093103]
[1766584860454,0.09877552,2933.4,2932.9,0.001]
[1766584861345,0.04261121,2933.5,2932.9,0.001]
[1766584861656,0.04260831,2933.7,2932.9,0.001]
[1766584861864,0.13648965,2933.8,2932.9,0.9149]
[1766584862028,1.00938092,2933.9,2933.1,0.9139]
[1766584862029,0.04260831,2933.7,2933.1,0.9139]
[1766584862336,0.04260685,2933.8,2933.1,0.9139]
[1766584862741,2.065142,2933.7,2933.1,0.9139]
[1766584864971,0.04260685,2933.8,2933.1,0.9139]
[1766584866978,0.04260685,2933.8,2933.2,0.9139]
[1766584868245,0.0446054,2933.9,2933.2,0.9139]
[1766584869166,0.002,2933.9,2933.3,0.9139]
[1766584871147,0.002,2933.9,2933.3,4.32294737]
[1766584871351,0.002,2933.9,2933.4,0.77321887]
[1766584871673,0.00029549,2933.9,2933.4,0.77321887]
[1766584871873,0.002,2934.0,2933.6,4.47890019]
[1766584872061,0.868,2934.7,2934.0,0.9139]
[1766584872454,0.002,2934.7,2934.0,0.9139]
[1766584872655,0.002,2934.7,2934.2,0.9139]
[1766584872980,0.002,2934.7,2934.3,3.40796782]
[1766584873279,0.002,2934.7,2934.2,0.9139]
[1766584874374,0.002,2934.7,2934.2,4.32196665]
[1766584875251,0.002,2934.7,2934.2,3.40806665]
[1766584875572,0.002,2934.7,2934.4,0.9139]
[1766584877065,0.002,2935.1,2934.4,0.9139]
[1766584877251,0.002,2935.1,2934.4,3.40778599]
[1766584877450,0.002,2935.1,2934.5,0.9139]
[1766584879378,0.002,2935.1,2934.5,3.40772718]
[1766584879582,0.002,2934.7,2934.6,1.25467272]
[1766584879770,0.002,2934.7,2934.6,0.34077272]
[1766584879969,0.002,2934.7,2934.4,4.32174292]
[1766584881764,0.002,2935.1,2934.5,0.9139]
[1766584883782,0.002,2935.1,2934.6,0.9139]
[1766584885075,0.002,2935.1,2934.3,5.95037349]
[1766584885385,0.002,2935.1,2934.3,5.05737349]
[1766584885592,0.002,2935.1,2934.4,3.91357237]
[1766584886258,0.002,2935.1,2934.4,0.50573735]
[1766584887158,0.002,2935.1,2934.4,3.91358154]
[1766584887710,0.002,2935.1,2934.5,0.001]
[1766584888287,0.002,2935.1,2934.8,4.47890019]
[1766584888469,0.002,2935.1,2934.9,1.36179002]
[1766584889177,0.002,2935.1,2934.9,0.9139]
[1766584889589,0.002,2935.3,2934.9,0.9139]
[1766584891566,0.04457638,2935.9,2935.2,0.9215]
[1766584892694,0.04457638,2935.9,2934.9,4.32877111]
[1766584892878,0.04457638,2935.9,2935.0,1.80226713]
[1766584893078,0.04457638,2935.9,2935.0,5.20941992]
[1766584893285,0.04457638,2935.9,2935.1,0.9215]
[1766584893882,0.04457638,2935.9,2934.7,3.40747887]
[1766584893883,4.47890019,2935.6,2934.7,0.9215]
[1766584894091,0.04258218,2935.5,2934.5,4.33016855]
[1766584894272,0.90858218,2935.5,2934.6,0.52231685]
[1766584894476,0.90858218,2935.5,2934.5,4.33016855]
[1766584894676,0.90858218,2935.5,2934.5,0.9225]
[1766584894874,30.0,2935.2,2934.2,0.9215]
[1766584895079,0.90858218,2935.5,2933.9,0.9215]
[1766584895080,34.47890019,2935.0,2933.9,0.9215]
[1766584895274,0.90859088,2934.9,2934.0,0.9215]
[1766584895593,0.90859088,2934.9,2934.1,0.9215]
[1766584896401,0.90859088,2934.9,2933.9,4.3830677]
[1766584896894,13.901408,2934.8,2933.7,1.8677]
[1766584897096,10.136681,2934.6,2933.7,0.9747]
[1766584897280,1.06052417,2934.5,2933.7,0.9747]
[1766584897478,0.04259669,2934.5,2933.7,4.38330434]
[1766584897673,5.34099827,2934.9,2933.7,4.38330434]
[1766584897674,9.857894,2934.7,2933.7,4.38330434]
[1766584897867,4.540096,2934.5,2933.7,4.38330434]
[1766584898063,11.126493,2934.7,2933.7,0.9747]
[1766584898281,10.501085,2934.5,2933.7,0.9747]
[1766584898479,0.87832323,2934.5,2933.7,4.38336252]
[1766584898798,13.961139,2934.7,2933.7,4.38336252]
[1766584898998,11.869085,2934.5,2933.7,4.38336252]
[1766584899297,30.0,2934.8,2933.7,4.38336252]
[1766584899491,19.250479,2934.6,2933.7,4.38336252]
[1766584899693,0.04259669,2934.5,2933.7,4.38336252]
[1766584900003,25.983086,2934.7,2933.7,5.16258646]
[1766584900198,11.302085,2934.5,2933.7,0.9747]
[1766584900420,0.90859814,2934.4,2933.5,0.9747]
[1766584900774,0.04259814,2934.4,2933.6,0.9747]
[1766584900968,0.29877552,2935.2,2933.5,3.40880911]
[1766584900969,0.866,2934.5,2933.8,0.9747]
[1766584901270,4.190099,2934.5,2933.8,1.41303231]
[1766584902480,4.190099,2934.5,2933.6,3.40874935]
[1766584902722,0.04259669,2934.5,2933.5,0.9747]
[1766584903005,5.474829,2934.4,2933.5,0.9747]
[1766584903212,3.76453,2934.2,2933.5,0.9747]
[1766584903504,8.200112,2934.4,2933.5,4.38358328]
[1766584903711,2.312,2934.2,2933.5,5.25225425]
[1766584903904,14.514497,2934.4,2933.5,5.25225425]
[1766584904205,2.312,2934.2,2933.5,5.25225425]
[1766584904507,21.3711,2934.4,2933.5,5.25226323]
[1766584904707,2.808529,2934.2,2933.5,5.25226323]
[1766584904904,15.936111,2934.4,2933.6,0.52522632]
[1766584905109,0.04259959,2934.3,2933.6,0.52522632]
[1766584905312,3.328916,2934.4,2933.6,0.52522632]
[1766584905609,0.04259959,2934.3,2933.7,0.9747]
[1766584905908,3.725678,2934.4,2933.6,0.52522632]
[1766584906110,0.04259959,2934.3,2933.4,0.9747]
[1766584906478,14.797104,2934.4,2933.8,0.001]
[1766584906678,0.04259959,2934.3,2933.8,0.001]
[1766584906878,21.19717,2934.4,2933.8,0.001]
[1766584907099,2.16657626,2934.3,2933.8,0.001]
[1766584907309,0.04259959,2934.3,2933.8,0.001]
[1766584907613,19.41917,2934.4,2933.8,0.001]
[1766584907811,0.04259959,2934.3,2933.8,0.001]
[1766584907996,9.88556,2934.4,2933.8,0.001]
[1766584908212,0.04259959,2934.3,2933.8,0.001]
[1766584908383,10.810645,2934.4,2933.8,0.001]
[1766584908584,1.12366409,2934.3,2933.8,0.001]
[1766584908802,0.04259959,2934.3,2933.8,0.001]
[1766584909097,13.64789,2934.4,2933.8,0.001]
[1766584909302,0.04259959,2934.3,2933.8,0.001]
[1766584909487,13.99589,2934.4,2933.8,0.001]
[1766584909692,0.04259959,2934.3,2933.8,0.001]
[1766584910014,0.866,2934.6,2933.8,0.001]
[1766584910015,16.767489,2934.4,2933.8,0.001]
[1766584910325,0.866,2934.6,2933.8,0.001]
[1766584910326,1.72360816,2934.3,2933.8,0.001]
[1766584910525,0.04259959,2934.3,2933.8,0.001]
[1766584910763,30.0,2934.4,2933.8,0.001]
[1766584910883,0.04259959,2934.3,2933.8,0.001]
[1766584911082,0.866,2934.6,2933.3,0.001]
[1766584911083,30.0,2934.4,2933.3,0.001]
[1766584911318,18.168355,2934.2,2933.3,0.9757]
[1766584911521,0.0426025,2934.1,2933.3,0.9757]
[1766584911721,0.04260104,2934.2,2933.3,0.9757]
[1766584911925,25.194861,2934.4,2933.3,0.9757]
[1766584912084,15.216035,2934.2,2933.3,0.9757]
[1766584912289,0.0426025,2934.1,2933.3,1.75513651]
[1766584912582,30.0,2934.4,2933.3,1.75513651]
[1766584912790,13.597424,2934.2,2933.3,1.75513651]
[1766584912984,0.0426025,2934.1,2933.3,1.75513651]
[1766584913185,3.392093,2934.4,2933.5,0.9747]
[1766584913395,0.38606856,2934.3,2933.5,0.9747]
[1766584913720,0.04259959,2934.3,2933.5,0.9747]
[1766584913887,3.953065,2934.4,2933.5,0.9747]
[1766584914082,0.04259959,2934.3,2933.5,0.9747]
[1766584914283,7.904833,2934.4,2933.5,0.9747]
[1766584914503,0.04259959,2934.3,2933.5,0.9747]
[1766584914713,11.954125,2934.4,2933.5,0.9747]
[1766584914896,1.24227176,2934.3,2933.5,0.9747]
[1766584915112,0.04259959,2934.3,2933.5,0.9747]
[1766584915427,14.045295,2934.4,2933.5,0.9757]
[1766584915623,0.04259959,2934.3,2933.5,0.9757]
[1766584915807,5.356815,2934.4,2933.5,0.9757]
[1766584916126,0.04259959,2934.3,2933.5,0.9757]
[1766584916325,14.031701,2934.4,2933.6,0.9747]
[1766584916525,0.04259959,2934.3,2933.6,0.9747]
[1766584916725,27.9195,2934.4,2933.6,0.9747]
[1766584916905,0.04259959,2934.3,2933.6,0.9747]
[1766584917229,22.9195,2934.4,2933.6,0.9747]
[1766584917425,2.33880926,2934.3,2933.6,0.9747]
[1766584917629,0.04259959,2934.3,2933.5,0.001]
[1766584917828,19.285309,2934.4,2933.5,0.001]
[1766584918132,0.04259959,2934.3,2933.5,0.001]
[1766584918311,19.285309,2934.4,2933.5,0.001]
[1766584918512,0.04259959,2934.3,2933.5,0.001]
[1766584918827,24.285309,2934.4,2933.5,0.001]
[1766584919031,2.47539016,2934.3,2933.5,0.001]
[1766584919228,0.04259959,2934.3,2933.5,0.001]
[1766584919436,24.285309,2934.4,2933.5,0.001]
[1766584919733,11.468639,2934.2,2933.3,0.001]
[1766584919913,18.195673,2934.0,2933.3,0.001]
[1766584920102,1.86643295,2933.9,2933.3,0.001]
[1766584920301,0.0426054,2933.9,2933.3,0.001]
[1766584920621,4.57377379,2934.5,2933.3,0.001]
[1766584920622,30.0,2934.3,2933.3,0.001]
[1766584920822,19.777936,2934.1,2933.3,0.001]
[1766584921014,13.593048,2933.9,2933.0,0.001]
[1766584921208,0.04260685,2933.8,2933.0,3.41047291]
[1766584921440,12.567886,2933.9,2933.0,3.41047291]
[1766584921638,1.30365584,2933.8,2933.0,3.41047291]
[1766584921839,0.04260685,2933.8,2933.0,0.001]
[1766584922004,17.678236,2933.9,2932.9,3.41057027]
[1766584922199,13.250435,2933.7,2932.9,0.001]
[1766584922406,0.04260976,2933.6,2932.9,0.001]
[1766584922605,30.0,2933.9,2932.9,0.001]
[1766584922899,18.690421,2933.7,2932.9,0.001]
[1766584923123,0.04260976,2933.6,2932.9,0.001]
[1766584923330,17.158337,2933.6,2932.9,0.001]
[1766584923530,0.04261121,2933.5,2932.9,0.001]
[1766584923842,30.0,2933.9,2932.9,0.001]
[1766584924038,19.001308,2933.7,2932.9,0.001]
[1766584924241,0.04260976,2933.6,2932.9,0.001]
[1766584924438,17.158337,2933.6,2932.9,0.001]
[1766584924642,0.04261121,2933.5,2932.9,0.001]
[1766584924829,30.0,2933.9,2933.3,0.001]
[1766584925135,0.96477552,2934.1,2933.3,0.001]
[1766584925136,6.569902,2933.7,2933.3,0.001]
[1766584925443,0.04260976,2933.6,2933.3,0.001]
[1766584925630,10.043365,2933.9,2933.3,0.001]
[1766584925822,2.452363,2933.7,2933.3,0.001]
[1766584926021,0.04260976,2933.6,2933.3,0.001]
[1766584926220,7.846748,2933.9,2933.3,0.001]
[1766584926538,3.009892,2933.7,2933.3,0.001]
[1766584926728,0.04260976,2933.6,2933.3,0.001]
[1766584926931,7.514105,2933.9,2933.3,0.001]
[1766584927134,3.009892,2933.7,2933.3,0.001]
[1766584927329,0.04260976,2933.6,2933.3,0.001]
[1766584927532,7.491009,2933.9,2933.3,0.001]
[1766584927838,2.395892,2933.7,2933.3,0.001]
[1766584928134,0.04260976,2933.6,2933.3,0.001]
[1766584928308,9.662101,2933.9,2933.3,0.001]
[1766584928511,3.805892,2933.7,2933.3,0.001]
[1766584928810,0.04260976,2933.6,2933.3,0.001]
[1766584929042,9.686544,2933.9,2933.3,0.001]
[1766584929241,4.211026,2933.7,2933.3,0.001]
[1766584929444,0.866,2934.1,2933.3,0.001]
[1766584929445,0.04260976,2933.6,2933.3,0.001]
[1766584929643,8.933568,2933.9,2933.3,0.001]
[1766584929846,0.866,2934.1,2933.3,0.001]
[1766584929847,3.392307,2933.7,2933.3,0.001]
[1766584930045,0.04260976,2933.6,2933.3,0.001]
[1766584930217,9.775956,2933.9,2933.3,0.001]
[1766584930424,3.189607,2933.7,2933.3,0.001]
[1766584930623,0.04260976,2933.6,2933.3,0.001]
[1766584930842,9.57774,2933.9,2933.3,0.001]
[1766584931141,3.175256,2933.7,2933.3,0.001]
[1766584931342,0.04260976,2933.6,2933.3,0.001]
[1766584931542,9.218503,2933.9,2933.3,0.001]
[1766584931839,3.256977,2933.7,2933.3,0.001]
[1766584932013,0.04260976,2933.6,2933.3,0.001]
[1766584932214,14.001972,2933.9,2933.3,0.001]
[1766584932515,2.834854,2933.7,2933.3,0.001]
[1766584932716,0.04260976,2933.6,2933.3,0.001]
[1766584932928,14.510629,2933.9,2933.3,0.001]
[1766584933129,3.187759,2933.7,2933.3,0.001]
[1766584933327,0.04260976,2933.6,2933.3,0.001]
[1766584933650,2.13055,2933.8,2933.3,0.001]
[1766584933850,0.04260685,2933.8,2933.3,0.001]
[1766584934452,2.217232,2933.7,2933.3,0.001]
[1766584934646,0.04260976,2933.6,2933.3,0.001]
[1766584935025,4.987217,2933.7,2933.3,0.001]
[1766584935231,0.04260976,2933.6,2933.3,0.001]
[1766584935433,9.601671,2933.7,2933.3,0.001]
[1766584935631,0.04260976,2933.6,2933.3,0.001]
[1766584935843,10.500271,2933.7,2933.3,0.001]
[1766584936045,1.09689755,2933.6,2933.3,0.001]
[1766584936246,0.04260976,2933.6,2933.3,0.001]
[1766584936559,9.152631,2933.7,2933.3,0.001]
[1766584936859,0.04260976,2933.6,2933.3,0.001]
[1766584937022,2.609377,2933.7,2933.3,0.001]
[1766584937224,0.04260976,2933.6,2933.3,0.001]
[1766584937424,0.10077552,2934.4,2933.3,0.001]
[1766584937425,11.217326,2933.9,2933.3,0.001]
[1766584937739,7.562643,2933.7,2933.3,0.001]
[1766584937934,0.04260976,2933.6,2933.3,0.001]
[1766584938155,0.04260831,2933.7,2933.3,0.001]
[1766584938357,4.863824,2933.8,2933.3,0.001]
[1766584938537,0.04260831,2933.7,2933.3,0.001]
[1766584938840,3.11555,2933.8,2933.3,0.001]
[1766584939023,0.35842385,2933.7,2933.3,0.001]
[1766584939222,0.04260831,2933.7,2933.3,0.001]
[1766584939444,4.024981,2933.8,2933.3,0.001]
[1766584939654,0.04260831,2933.7,2933.3,0.001]
[1766584939968,4.698119,2933.8,2933.3,0.001]
[1766584940168,0.04260831,2933.7,2933.3,0.001]
[1766584940461,3.830019,2933.8,2933.3,0.001]
[1766584940665,0.42987075,2933.7,2933.3,0.001]
[1766584940843,0.04260831,2933.7,2933.3,0.001]
[1766584941044,0.867,2934.0,2933.3,0.001]
[1766584941045,3.830019,2933.8,2933.3,0.001]
[1766584941256,0.04260831,2933.7,2933.3,0.001]
[1766584941464,0.0426054,2933.9,2933.3,0.001]
[1766584941964,2.169217,2933.8,2933.3,0.001]
[1766584942167,0.04260831,2933.7,2933.3,0.001]
[1766584942533,2.24211,2933.8,2933.3,0.001]
[1766584942734,0.04260831,2933.7,2933.3,0.001]
[1766584942957,0.0426054,2933.9,2933.3,0.001]
[1766584943128,2.157229,2933.8,2933.3,0.001]
[1766584943332,0.04260831,2933.7,2933.3,0.001]
[1766584943733,0.002,2933.7,2933.3,0.001]
[1766584944069,0.002,2933.7,2933.3,0.9134]
[1766584946371,0.002,2933.7,2933.4,0.9124]
[1766584946564,0.24459814,2934.4,2933.4,0.9124]
[1766584946565,0.04459814,2934.4,2933.4,0.9124]
[1766584946779,0.04459814,2934.4,2933.4,1.09304]
[1766584947272,0.002,2934.4,2933.4,1.09304]
[1766584947486,0.002,2934.4,2933.7,0.9124]
[1766584947777,0.002,2934.4,2934.0,0.9124]
[1766584948075,0.002,2934.4,2934.1,1.34448325]
[1766584948282,0.002,2934.9,2934.2,0.9124]
[1766584948479,2.32461,2934.8,2934.2,0.9124]
[1766584948838,0.002,2934.9,2934.2,0.9124]
[1766584949139,2.053649,2934.8,2934.2,0.9124]
[1766584949334,0.002,2934.9,2934.2,0.9124]
[1766584949531,2.116289,2934.8,2934.2,0.9124]
[1766584949730,0.002,2934.9,2934.2,0.9124]
[1766584949943,0.002,2934.9,2934.3,0.9124]
[1766584953373,0.002,2934.9,2934.4,0.9493]
[1766584953585,0.002,2935.5,2934.7,4.8506712]
[1766584953875,0.002,2935.5,2934.9,0.9493]
[1766584954042,0.002,2935.5,2935.1,0.9493]
[1766584954246,0.002,2935.9,2935.1,0.9493]
[1766584955570,0.002,2935.9,2935.2,0.9493]
[1766584957567,0.002,2935.9,2935.1,3.40693482]
[1766584957743,0.865,2935.8,2934.6,0.9074]
[1766584957940,0.865,2935.8,2934.9,3.40723608]
[1766584957941,0.6143464,2935.7,2934.9,3.40723608]
[1766584958150,0.6143464,2935.7,2934.8,3.40731422]
[1766584958868,0.6143464,2935.7,2934.7,3.50627192]
[1766584958869,0.6143464,2935.7,2934.7,3.50620501]
[1766584959179,0.6143464,2935.7,2934.7,3.40744397]
[1766584960076,0.6143464,2935.7,2934.7,6.81494729]
[1766584960373,0.04457928,2935.7,2934.7,7.59705957]
[1766584960579,0.04457928,2935.7,2934.7,4.18955625]
[1766584961270,0.865,2935.6,2934.7,4.18955625]
[1766584961474,0.04258218,2935.5,2934.7,4.18955625]
[1766584962477,0.04258218,2935.5,2934.7,7.59705957]
[1766584964985,0.04258218,2935.5,2934.7,4.18955625]
[1766584966001,0.04258218,2935.5,2934.7,7.59705957]
[1766584966156,0.04258218,2935.5,2934.7,8.50445957]
[1766584966947,0.04457928,2935.7,2935.1,0.9074]
[1766584967263,0.002,2935.7,2935.1,0.9074]
[1766584969286,0.002,2935.7,2935.1,4.31438876]
[1766584969597,0.002,2935.7,2934.9,3.40725624]
[1766584969802,0.002,2935.7,2934.9,4.01405422]
[1766584969998,0.002,2935.7,2935.1,3.40703531]
[1766584971597,0.002,2935.7,2935.0,3.40714903]
[1766584971790,0.002,2935.7,2935.0,6.81430405]
[1766584972903,0.002,2935.7,2935.0,7.72170405]
[1766584973103,0.002,2935.7,2935.2,0.9074]
[1766584973709,0.002,2935.7,2935.1,0.8328502]
[1766584973710,0.002,2935.7,2935.4,0.9074]
[1766584975909,0.002,2935.7,2935.4,4.31405617]
[1766584978615,0.002,2935.9,2935.5,0.9074]
[1766584979923,0.002,2935.9,2935.6,4.31385864]
[1766584980216,0.002,2935.9,2935.6,5.5705405]
[1766584984621,0.002,2935.9,2935.7,0.9551]
[1766584985320,0.002,2935.9,2935.2,0.99177552]
[1766584985523,0.002,2935.9,2935.3,4.36183882]
[1766584986017,0.002,2935.9,2935.6,3.40644687]
[1766584986218,0.002,2935.9,2935.7,0.9551]
[1766584988703,0.002,2935.9,2935.4,4.36173251]
[1766584989021,0.002,2935.9,2935.4,0.9551]
[1766584989189,0.002,2935.9,2935.3,3.40677509]
[1766584989528,0.002,2935.9,2935.3,4.36183309]
[1766584989831,0.002,2935.9,2935.1,3.40694173]
[1766584989832,0.04457638,2935.9,2935.1,0.9551]
[1766584990045,0.04457638,2935.9,2935.0,0.001]
[1766584990194,0.5755034,2935.8,2935.0,0.001]
[1766584990524,0.04257928,2935.7,2935.0,0.001]
[1766584991515,0.04258073,2935.6,2935.0,0.001]
[1766584991821,0.04257928,2935.7,2935.0,0.001]
[1766584993823,14.655808,2935.6,2935.0,0.001]
[1766584994036,30.0,2935.4,2934.6,0.001]
[1766584994204,0.04258508,2935.3,2934.7,0.9551]
[1766584995593,0.9551,2934.6,2934.3,0.9551]
[1766584995850,0.9551,2934.6,2934.3,0.4051]
[1766584996406,0.04259669,2934.5,2934.0,0.9551]
[1766584997531,0.04259669,2934.5,2933.8,0.001]
[1766584997733,0.58441543,2934.4,2934.3,0.001]
[1766584997936,0.58441543,2934.4,2933.5,0.9561]
[1766584997937,0.58441543,2934.4,2933.5,4.36493064]
[1766584998137,0.04259959,2934.3,2933.5,4.36493064]
[1766584998298,0.04259959,2934.3,2933.6,3.40877617]
[1766584998923,0.04259959,2934.3,2933.5,3.4098031]
[1766584999093,0.04259959,2934.3,2933.5,0.9561]
[1766584999595,0.04259959,2934.3,2933.6,0.9551]
[1766585000400,0.04259669,2934.5,2933.6,0.9551]
[1766585001421,0.04259814,2934.4,2933.6,0.9551]
[1766585001592,5.71145759,2934.9,2933.6,4.36387218]
[1766585001593,30.0,2934.7,2933.6,4.36387218]
[1766585001792,5.71145759,2934.9,2933.6,4.36387218]
[1766585001793,3.04685447,2934.6,2933.6,4.36387218]
[1766585002023,0.04259524,2934.6,2933.6,4.36387218]
[1766585002232,30.0,2934.7,2933.6,4.36387218]
[1766585002431,0.04259524,2934.6,2933.7,0.9551]
[1766585002631,30.0,2934.7,2933.7,0.9551]
[1766585002800,0.04259524,2934.6,2933.7,0.9551]
[1766585003001,30.0,2934.7,2933.7,0.9551]
[1766585003223,3.04685447,2934.6,2933.7,0.9551]
[1766585003431,0.04259524,2934.6,2933.7,0.9551]
[1766585003641,5.71145759,2934.9,2933.6,0.9551]
[1766585003642,30.0,2934.7,2933.6,0.9551]
[1766585003841,0.04259524,2934.6,2933.5,0.9561]
[1766585004021,30.0,2934.7,2933.5,3.40983867]
[1766585004227,0.04259524,2934.6,2933.6,0.9551]
[1766585004431,30.0,2934.7,2933.6,0.9551]
[1766585004604,3.04685447,2934.6,2933.6,0.9551]
[1766585004805,0.04259524,2934.6,2933.6,0.9551]
[1766585005133,30.0,2934.7,2933.6,0.9551]
[1766585005334,20.842928,2934.5,2933.6,0.9551]
[1766585005539,0.04259814,2934.4,2933.6,0.9551]
[1766585005714,30.0,2934.7,2933.6,4.36387115]
[1766585005899,3.04685447,2934.6,2933.7,0.9551]
[1766585006104,4.264614,2934.5,2933.7,0.9551]
[1766585006327,0.04259814,2934.4,2933.7,0.9551]
[1766585006501,19.3488,2934.7,2933.7,0.9551]
[1766585006698,3.331285,2934.5,2933.7,0.9551]
[1766585006928,0.04259814,2934.4,2933.7,0.9551]
[1766585007131,3.714115,2934.5,2933.7,0.9551]
[1766585007315,0.41420964,2934.4,2933.7,0.9551]
[1766585007520,0.04259814,2934.4,2933.7,0.9551]
[1766585007831,0.002,2934.6,2933.8,0.9551]
[1766585008035,0.90959524,2934.6,2933.8,0.9551]
[1766585010406,0.90959524,2934.6,2933.7,3.40864832]
[1766585011744,0.90959524,2934.6,2933.7,4.32934832]
[1766585012907,0.90959524,2934.6,2933.7,7.73801314]
[1766585013104,0.04459524,2934.6,2933.8,0.9207]
[1766585013309,0.002,2934.6,2934.0,0.9207]
[1766585014030,0.002,2934.6,2933.7,2.15154707]
[1766585014338,30.0,2934.4,2933.5,0.001]
[1766585014540,0.04259959,2934.3,2933.5,0.001]
[1766585018837,0.04259959,2934.3,2933.5,0.9395]
[1766585019226,0.90759959,2934.3,2933.5,0.9395]
[1766585020472,0.04259959,2934.3,2933.5,0.9395]
[1766585020979,0.04259959,2934.3,2933.7,0.9385]
[1766585021437,0.002,2934.6,2933.7,0.9385]
[1766585021438,0.002,2934.6,2933.8,0.9385]
[1766585021643,2.249079,2934.5,2933.8,0.97258548]
[1766585021848,0.002,2934.6,2933.8,0.97258548]
[1766585022253,0.04459524,2934.6,2933.8,0.03408548]
[1766585022424,0.002,2934.6,2933.9,0.9385]
[1766585022627,0.002,2934.6,2934.1,0.9385]
[1766585022856,0.04459524,2934.6,2934.1,0.9385]
[1766585023059,0.002,2934.6,2934.1,0.9385]
[1766585023236,0.002,2934.6,2933.9,0.03408432]
[1766585023450,0.002,2934.6,2933.7,0.9385]
[1766585023854,0.04459524,2934.6,2933.7,0.9385]
[1766585024070,0.002,2934.6,2933.7,0.9385]
[1766585024627,0.04459524,2934.6,2933.7,0.9385]
[1766585024828,0.002,2934.6,2933.7,0.9385]
[1766585025025,0.002,2934.6,2933.8,0.9385]
[1766585025429,0.04459524,2934.6,2933.8,0.9385]
[1766585025657,0.002,2934.6,2933.8,0.9385]
[1766585026062,0.04459524,2934.6,2933.8,0.9385]
[1766585026246,0.04459524,2934.6,2933.7,0.52412591]
[1766585026450,0.04459524,2934.6,2933.5,0.001]
[1766585026655,0.04459524,2934.6,2933.5,0.9395]
[1766585026656,30.0,2934.5,2933.5,0.9395]
[1766585026980,0.04259814,2934.4,2933.6,0.03408781]
[1766585027264,30.0,2934.5,2933.6,0.97258781]
[1766585027556,3.04705766,2934.4,2933.6,0.97258781]
[1766585027758,0.04259814,2934.4,2933.6,0.03408781]
[1766585027929,30.0,2934.5,2933.6,0.03408781]